[Event "Titled Tuesday Blitz March 28 Late 2023"]
[White "Zierk, Steven"]
[Black "Koutlas, Nikolaos"]
[WhiteFideId "2034255"]
[BlackFideId "25827138"]
[WhiteElo "2494"]
[BlackElo "2215"]
[Result "1-0"]
[Round "03"]
[TimeControl "180+2"]
[Date "2023.03.28"]
[WhiteClock "0:00:15"]
[BlackClock "0:00:07"]

1. e4 {[%clk 0:03:00]}  c5 {[%clk 0:02:59]} 2. Nf3 {[%clk 0:03:01]}  Nc6 {[%clk 0:02:55]} 3. Bb5 {[%clk 0:03:00]}  g6 {[%clk 0:02:54]} 4. O-O {[%clk 0:03:00]}  Bg7 {[%clk 0:02:53]} 5. c3 {[%clk 0:03:00]}  Nf6 {[%clk 0:02:53]} 6. Re1 {[%clk 0:03:00]}  O-O {[%clk 0:02:53]} 7. d4 {[%clk 0:03:01]}  d5 {[%clk 0:02:52]} 8. e5 {[%clk 0:03:01]}  Ne4 {[%clk 0:02:52]} 9. Be3 {[%clk 0:03:01]}  Bd7 {[%clk 0:02:49]} 10. a4 {[%clk 0:03:00]}  Rc8 {[%clk 0:02:27]} 11. Nbd2 {[%clk 0:02:33]}  cxd4 {[%clk 0:02:25]} 12. cxd4 {[%clk 0:02:30]}  Nb4 {[%clk 0:02:26]} 13. Qb3 {[%clk 0:02:11]}  Nc2 {[%clk 0:02:23]} 14. Qxd5 {[%clk 0:02:00]}  Nxd2 {[%clk 0:02:23]} 15. Qxd7 {[%clk 0:01:46]}  Nxf3+ {[%clk 0:02:16]} 16. gxf3 {[%clk 0:01:47]}  Nxe1 {[%clk 0:01:42]} 17. Rxe1 {[%clk 0:01:42]}  Qa5 {[%clk 0:01:42]} 18. Re2 {[%clk 0:01:37]}  Rc7 {[%clk 0:01:40]} 19. b4 {[%clk 0:01:21]}  Rxd7 {[%clk 0:01:27]} 20. bxa5 {[%clk 0:01:21]}  Rc7 {[%clk 0:01:27]} 21. f4 {[%clk 0:01:18]}  e6 {[%clk 0:01:23]} 22. d5 {[%clk 0:01:16]}  exd5 {[%clk 0:01:23]} 23. Bxa7 {[%clk 0:01:16]}  Bh6 {[%clk 0:01:15]} 24. Be3 {[%clk 0:01:15]}  d4 {[%clk 0:01:00]} 25. Bxd4 {[%clk 0:01:15]}  Bxf4 {[%clk 0:01:00]} 26. Kg2 {[%clk 0:01:13]}  Rc1 {[%clk 0:00:54]} 27. a6 {[%clk 0:01:09]}  bxa6 {[%clk 0:00:52]} 28. Bxa6 {[%clk 0:01:10]}  Rd8 {[%clk 0:00:50]} 29. Re4 {[%clk 0:01:06]}  Bg5 {[%clk 0:00:41]} 30. h4 {[%clk 0:01:01]}  Be7 {[%clk 0:00:38]} 31. Be3 {[%clk 0:00:56]}  Rc3 {[%clk 0:00:33]} 32. Bc4 {[%clk 0:00:46]}  Rc8 {[%clk 0:00:25]} 33. Bd5 {[%clk 0:00:40]}  Bc5 {[%clk 0:00:25]} 34. Bg5 {[%clk 0:00:37]}  Rc2 {[%clk 0:00:22]} 35. Rf4 {[%clk 0:00:36]}  Rc7 {[%clk 0:00:20]} 36. e6 {[%clk 0:00:33]}  fxe6 {[%clk 0:00:17]} 37. Bxe6+ {[%clk 0:00:34]}  Kg7 {[%clk 0:00:17]} 38. h5 {[%clk 0:00:32]}  h6 {[%clk 0:00:16]} 39. Bf6+ {[%clk 0:00:31]}  Kh7 {[%clk 0:00:17]} 40. hxg6+ {[%clk 0:00:18]}  Kxg6 {[%clk 0:00:16]} 41. Be5 {[%clk 0:00:16]}  Bxf2 {[%clk 0:00:13]} 42. Bf5+ {[%clk 0:00:15]}  Kg5 {[%clk 0:00:12]} 43. Bxc2 {[%clk 0:00:15]}  Rxc2 {[%clk 0:00:09]} 44. Rxf2 {[%clk 0:00:15]}  Rc5 {[%clk 0:00:07]} 45. Bd4 {[%clk 0:00:14]}  Ra5 {[%clk 0:00:07]} 46. Ra2 {[%clk 0:00:14]}  Kf5 {[%clk 0:00:08]} 47. Bb6 {[%clk 0:00:14]}  Ra6 {[%clk 0:00:08]} 48. a5 {[%clk 0:00:14]}  Ke4 {[%clk 0:00:09]} 49. Rd2 {[%clk 0:00:14]}  Ra8 {[%clk 0:00:09]} 50. Rd8 {[%clk 0:00:13]}  Rxd8 {[%clk 0:00:07]} 51. Bxd8 {[%clk 0:00:14]}  Kd5 {[%clk 0:00:08]} 52. a6 {[%clk 0:00:15]}  Kc6 {[%clk 0:00:07]} 53. Kh3 {[%clk 0:00:15]}  Kd7 {[%clk 0:00:07]} 54. a7 {[%clk 0:00:15]} 1-0


[Site "https://www.chess.com"]

[Event "Titled Tuesday Blitz March 28 Late 2023"]
[White "Gasparyan, David"]
[Black "Babazada, Khazar"]
[WhiteFideId "13311980"]
[BlackFideId "13413554"]
[WhiteElo "2486"]
[BlackElo "2364"]
[Result "0-1"]
[Round "03"]
[TimeControl "180+2"]
[Date "2023.03.28"]
[WhiteClock "0:00:39"]
[BlackClock "0:01:01"]

1. c4 {[%clk 0:03:00]}  e5 {[%clk 0:02:53]} 2. g3 {[%clk 0:03:01]}  Nc6 {[%clk 0:02:45]} 3. Bg2 {[%clk 0:03:00]}  Nf6 {[%clk 0:02:44]} 4. Nc3 {[%clk 0:03:00]}  Bb4 {[%clk 0:02:44]} 5. e3 {[%clk 0:02:57]}  Bxc3 {[%clk 0:02:43]} 6. bxc3 {[%clk 0:02:55]}  O-O {[%clk 0:02:43]} 7. d4 {[%clk 0:02:48]}  Re8 {[%clk 0:02:37]} 8. Ne2 {[%clk 0:02:48]}  d6 {[%clk 0:02:34]} 9. O-O {[%clk 0:02:47]}  Bd7 {[%clk 0:02:33]} 10. Rb1 {[%clk 0:02:46]}  Qc8 {[%clk 0:02:33]} 11. Ba3 {[%clk 0:02:35]}  Bh3 {[%clk 0:02:32]} 12. c5 {[%clk 0:02:29]}  Bxg2 {[%clk 0:02:31]} 13. Kxg2 {[%clk 0:02:29]}  d5 {[%clk 0:02:26]} 14. Qc2 {[%clk 0:02:21]}  b6 {[%clk 0:02:15]} 15. c4 {[%clk 0:02:16]}  exd4 {[%clk 0:02:10]} 16. exd4 {[%clk 0:02:09]}  dxc4 {[%clk 0:01:55]} 17. Qxc4 {[%clk 0:02:05]}  Qf5 {[%clk 0:01:45]} 18. cxb6 {[%clk 0:01:50]}  Na5 {[%clk 0:01:41]} 19. Qb5 {[%clk 0:01:35]}  Qe4+ {[%clk 0:01:36]} 20. Kg1 {[%clk 0:01:34]}  cxb6 {[%clk 0:01:31]} 21. Rfe1 {[%clk 0:01:28]}  Qd5 {[%clk 0:01:21]} 22. Nf4 {[%clk 0:01:13]}  Rxe1+ {[%clk 0:01:19]} 23. Rxe1 {[%clk 0:00:59]}  Qxb5 {[%clk 0:01:19]} 24. d5 {[%clk 0:00:59]}  Nxd5 {[%clk 0:01:15]} 25. Re5 {[%clk 0:00:59]}  Qb1+ {[%clk 0:01:15]} 26. Kg2 {[%clk 0:00:58]}  Nxf4+ {[%clk 0:01:12]} 27. gxf4 {[%clk 0:00:59]}  Nc4 {[%clk 0:01:11]} 28. Re2 {[%clk 0:00:55]}  Nxa3 {[%clk 0:01:08]} 29. f5 {[%clk 0:00:55]}  Qxf5 {[%clk 0:01:05]} 30. h3 {[%clk 0:00:55]}  Nc4 {[%clk 0:01:04]} 31. Kh2 {[%clk 0:00:54]}  Ne5 {[%clk 0:01:03]} 32. Kg1 {[%clk 0:00:48]}  Rd8 {[%clk 0:01:02]} 33. f4 {[%clk 0:00:40]}  Rd1+ {[%clk 0:01:01]} 34. Kg2 {[%clk 0:00:39]}  Qg6+ {[%clk 0:01:01]} 0-1


[Site "https://www.chess.com"]

[Event "Titled Tuesday Blitz March 28 Late 2023"]
[White "Khandelwal, Ankush"]
[Black "Boyer, Mahel"]
[WhiteFideId "413470"]
[BlackFideId "45102422"]
[WhiteElo "2263"]
[BlackElo "2439"]
[Result "0-1"]
[Round "03"]
[TimeControl "180+2"]
[Date "2023.03.28"]
[WhiteClock "0:00:10"]
[BlackClock "0:02:27"]

1. e4 {[%clk 0:03:00]}  Nc6 {[%clk 0:02:57]} 2. Nf3 {[%clk 0:02:59]}  d5 {[%clk 0:02:57]} 3. exd5 {[%clk 0:02:50]}  Qxd5 {[%clk 0:02:58]} 4. Nc3 {[%clk 0:02:48]}  Qh5 {[%clk 0:02:58]} 5. Nb5 {[%clk 0:02:42]}  Kd8 {[%clk 0:02:58]} 6. d4 {[%clk 0:02:40]}  Bg4 {[%clk 0:02:57]} 7. Bf4 {[%clk 0:02:30]}  a6 {[%clk 0:02:56]} 8. Nxc7 {[%clk 0:02:16]}  Rc8 {[%clk 0:02:55]} 9. d5 {[%clk 0:02:16]}  Bxf3 {[%clk 0:02:54]} 10. gxf3 {[%clk 0:00:54]}  Ne5 {[%clk 0:02:50]} 11. Ne6+ {[%clk 0:00:50]}  fxe6 {[%clk 0:02:51]} 12. dxe6+ {[%clk 0:00:51]}  Ke8 {[%clk 0:02:51]} 13. Be2 {[%clk 0:00:36]}  Nf6 {[%clk 0:02:45]} 14. Rg1 {[%clk 0:00:20]}  Qf5 {[%clk 0:02:39]} 15. Qd4 {[%clk 0:00:14]}  Nc6 {[%clk 0:02:29]} 16. Qd2 {[%clk 0:00:11]}  Rd8 {[%clk 0:02:27]} 17. Qe3 {[%clk 0:00:11]}  Nd4 {[%clk 0:02:27]} 18. O-O-O {[%clk 0:00:10]}  Qxc2# {[%clk 0:02:27]} 0-1


[Site "https://www.chess.com"]

[Event "Titled Tuesday Blitz March 28 Late 2023"]
[White "Raja Rithvik R"]
[Black "Manukian, Artak"]
[WhiteFideId "35007394"]
[BlackFideId "13301373"]
[WhiteElo "2402"]
[BlackElo "2130"]
[Result "1-0"]
[Round "03"]
[TimeControl "180+2"]
[Date "2023.03.28"]
[WhiteClock "0:01:28"]
[BlackClock "0:01:13"]

1. b3 {[%clk 0:03:00]}  Nf6 {[%clk 0:02:58]} 2. Bb2 {[%clk 0:03:01]}  g6 {[%clk 0:02:59]} 3. e3 {[%clk 0:03:01]}  Bg7 {[%clk 0:02:59]} 4. f4 {[%clk 0:03:00]}  O-O {[%clk 0:02:59]} 5. Nf3 {[%clk 0:03:01]}  c5 {[%clk 0:03:00]} 6. Be2 {[%clk 0:03:01]}  d5 {[%clk 0:03:00]} 7. O-O {[%clk 0:03:01]}  Nc6 {[%clk 0:03:00]} 8. Ne5 {[%clk 0:03:02]}  Nxe5 {[%clk 0:02:59]} 9. Bxe5 {[%clk 0:03:03]}  Bf5 {[%clk 0:02:54]} 10. d3 {[%clk 0:03:01]}  a5 {[%clk 0:02:53]} 11. a4 {[%clk 0:02:59]}  Rc8 {[%clk 0:02:49]} 12. Bf3 {[%clk 0:02:55]}  h5 {[%clk 0:02:44]} 13. h3 {[%clk 0:02:54]}  Qb6 {[%clk 0:02:27]} 14. Nd2 {[%clk 0:02:48]}  Rfd8 {[%clk 0:02:25]} 15. Qe2 {[%clk 0:02:38]}  Be6 {[%clk 0:02:14]} 16. e4 {[%clk 0:02:27]}  c4+ {[%clk 0:02:11]} 17. Kh1 {[%clk 0:02:23]}  cxd3 {[%clk 0:02:04]} 18. cxd3 {[%clk 0:02:22]}  dxe4 {[%clk 0:01:57]} 19. Nxe4 {[%clk 0:02:10]}  Nxe4 {[%clk 0:01:57]} 20. Bxe4 {[%clk 0:02:09]}  Qxb3 {[%clk 0:01:53]} 21. Bxg7 {[%clk 0:02:00]}  Kxg7 {[%clk 0:01:52]} 22. f5 {[%clk 0:01:56]}  Bd5 {[%clk 0:01:40]} 23. Bxd5 {[%clk 0:01:53]}  Qxd5 {[%clk 0:01:29]} 24. fxg6 {[%clk 0:01:53]}  fxg6 {[%clk 0:01:24]} 25. Qxe7+ {[%clk 0:01:53]}  Kh6 {[%clk 0:01:24]} 26. Rf7 {[%clk 0:01:49]}  Rh8 {[%clk 0:01:24]} 27. Qf6 {[%clk 0:01:28]}  Qg5 {[%clk 0:01:13]} 28. Qg7# {[%clk 0:01:28]} 1-0


[Site "https://www.chess.com"]

[Event "Titled Tuesday Blitz March 28 Late 2023"]
[White "Escalona Landi, Samid Eduardo"]
[Black "Minko, Dmitry"]
[WhiteFideId "3937437"]
[BlackFideId "24188468"]
[WhiteElo "2207"]
[BlackElo "2147"]
[Result "1-0"]
[Round "03"]
[TimeControl "180+2"]
[Date "2023.03.28"]
[WhiteClock "0:00:04"]
[BlackClock "0:00:02"]

1. e4 {[%clk 0:02:58]}  e5 {[%clk 0:02:59]} 2. Nf3 {[%clk 0:02:57]}  Nc6 {[%clk 0:02:59]} 3. d4 {[%clk 0:02:57]}  exd4 {[%clk 0:02:59]} 4. Nxd4 {[%clk 0:02:58]}  Bc5 {[%clk 0:02:59]} 5. Nb3 {[%clk 0:02:58]}  Bb4+ {[%clk 0:02:59]} 6. Bd2 {[%clk 0:02:52]}  a5 {[%clk 0:02:58]} 7. a4 {[%clk 0:02:19]}  Nf6 {[%clk 0:02:57]} 8. Nc3 {[%clk 0:02:08]}  O-O {[%clk 0:02:56]} 9. Bd3 {[%clk 0:02:05]}  Re8 {[%clk 0:02:45]} 10. O-O {[%clk 0:02:01]}  Bxc3 {[%clk 0:02:28]} 11. Bxc3 {[%clk 0:02:02]}  Nxe4 {[%clk 0:02:29]} 12. Bxe4 {[%clk 0:01:52]}  Rxe4 {[%clk 0:02:29]} 13. Nc5 {[%clk 0:01:48]}  Re8 {[%clk 0:02:22]} 14. Qg4 {[%clk 0:01:47]}  f6 {[%clk 0:02:17]} 15. Rfe1 {[%clk 0:01:28]}  d6 {[%clk 0:02:09]} 16. Qc4+ {[%clk 0:01:27]}  Kh8 {[%clk 0:02:06]} 17. Rxe8+ {[%clk 0:01:26]}  Qxe8 {[%clk 0:02:06]} 18. Re1 {[%clk 0:01:26]}  Ne5 {[%clk 0:02:00]} 19. Qf1 {[%clk 0:01:06]}  Nf3+ {[%clk 0:01:27]} 20. gxf3 {[%clk 0:01:05]}  Qg6+ {[%clk 0:01:27]} 21. Qg2 {[%clk 0:00:58]}  dxc5 {[%clk 0:01:28]} 22. Qxg6 {[%clk 0:00:58]}  hxg6 {[%clk 0:01:28]} 23. Re8+ {[%clk 0:00:49]}  Kh7 {[%clk 0:01:29]} 24. h4 {[%clk 0:00:48]}  b6 {[%clk 0:01:25]} 25. Re7 {[%clk 0:00:49]}  Bf5 {[%clk 0:01:24]} 26. Bxf6 {[%clk 0:00:48]}  Bxc2 {[%clk 0:01:23]} 27. Rxg7+ {[%clk 0:00:46]}  Kh6 {[%clk 0:01:04]} 28. Rxc7 {[%clk 0:00:46]}  g5 {[%clk 0:01:04]} 29. Bxg5+ {[%clk 0:00:45]}  Kg6 {[%clk 0:01:01]} 30. Rc6+ {[%clk 0:00:44]}  Kf5 {[%clk 0:01:02]} 31. Rxb6 {[%clk 0:00:44]}  Bxa4 {[%clk 0:01:02]} 32. Kg2 {[%clk 0:00:41]}  Be8 {[%clk 0:00:48]} 33. Kg3 {[%clk 0:00:38]}  a4 {[%clk 0:00:38]} 34. Bc1 {[%clk 0:00:19]}  Bh5 {[%clk 0:00:26]} 35. Rb5 {[%clk 0:00:18]}  Rg8+ {[%clk 0:00:20]} 36. Bg5 {[%clk 0:00:18]}  Rc8 {[%clk 0:00:21]} 37. Ra5 {[%clk 0:00:18]}  Be8 {[%clk 0:00:21]} 38. Be3 {[%clk 0:00:18]}  Rb8 {[%clk 0:00:15]} 39. Rxc5+ {[%clk 0:00:14]}  Kg6 {[%clk 0:00:15]} 40. Rg5+ {[%clk 0:00:13]}  Kh7 {[%clk 0:00:14]} 41. Bd4 {[%clk 0:00:13]}  Bc6 {[%clk 0:00:11]} 42. Rg7+ {[%clk 0:00:13]}  Kh6 {[%clk 0:00:11]} 43. Rc7 {[%clk 0:00:14]}  Bd5 {[%clk 0:00:10]} 44. Be3+ {[%clk 0:00:13]}  Kg6 {[%clk 0:00:10]} 45. Rc5 {[%clk 0:00:09]}  Bb3 {[%clk 0:00:10]} 46. Bg5 {[%clk 0:00:08]}  Rb6 {[%clk 0:00:06]} 47. h5+ {[%clk 0:00:07]}  Kh7 {[%clk 0:00:05]} 48. Rc7+ {[%clk 0:00:07]}  Kg8 {[%clk 0:00:04]} 49. Be3 {[%clk 0:00:07]}  Rb5 {[%clk 0:00:04]} 50. Kh4 {[%clk 0:00:06]}  Rb4+ {[%clk 0:00:03]} 51. f4 {[%clk 0:00:06]}  Rb5 {[%clk 0:00:03]} 52. Bd4 {[%clk 0:00:05]}  Bd1 {[%clk 0:00:03]} 53. Be5 {[%clk 0:00:05]}  Rxb2 {[%clk 0:00:02]} 54. Bxb2 {[%clk 0:00:04]} 1-0


[Site "https://www.chess.com"]

[Event "Titled Tuesday Blitz March 28 Late 2023"]
[White "Fernandez Garcia, Gumersindo"]
[Black "Oro, Faustino"]
[WhiteFideId "24516740"]
[BlackFideId "20000197"]
[WhiteElo "2093"]
[BlackElo "1984"]
[Result "0-1"]
[Round "03"]
[TimeControl "180+2"]
[Date "2023.03.28"]
[WhiteClock "0:00:02"]
[BlackClock "0:00:04"]

1. d4 {[%clk 0:03:00]}  Nf6 {[%clk 0:02:58]} 2. c4 {[%clk 0:02:57]}  e6 {[%clk 0:02:56]} 3. Nf3 {[%clk 0:02:56]}  b6 {[%clk 0:02:54]} 4. g3 {[%clk 0:02:56]}  Bb7 {[%clk 0:02:54]} 5. Bg2 {[%clk 0:02:56]}  Be7 {[%clk 0:02:54]} 6. O-O {[%clk 0:02:56]}  O-O {[%clk 0:02:55]} 7. Nc3 {[%clk 0:02:55]}  Ne4 {[%clk 0:02:53]} 8. Qc2 {[%clk 0:02:53]}  Nxc3 {[%clk 0:02:52]} 9. Qxc3 {[%clk 0:02:54]}  d6 {[%clk 0:02:51]} 10. b4 {[%clk 0:02:51]}  f5 {[%clk 0:02:33]} 11. Bb2 {[%clk 0:02:44]}  Bf6 {[%clk 0:02:28]} 12. Ne1 {[%clk 0:02:40]}  Bxg2 {[%clk 0:02:23]} 13. Nxg2 {[%clk 0:02:41]}  c5 {[%clk 0:01:38]} 14. e3 {[%clk 0:02:24]}  Nc6 {[%clk 0:01:32]} 15. bxc5 {[%clk 0:01:42]}  bxc5 {[%clk 0:01:30]} 16. Rfd1 {[%clk 0:01:36]}  Qb6 {[%clk 0:01:25]} 17. Nf4 {[%clk 0:01:29]}  Rfe8 {[%clk 0:01:20]} 18. Rab1 {[%clk 0:01:20]}  cxd4 {[%clk 0:01:08]} 19. Qe1 {[%clk 0:01:09]}  Qa6 {[%clk 0:00:53]} 20. exd4 {[%clk 0:00:59]}  Qxc4 {[%clk 0:00:53]} 21. Rbc1 {[%clk 0:00:55]}  Qb5 {[%clk 0:00:41]} 22. Ba1 {[%clk 0:00:52]}  e5 {[%clk 0:00:38]} 23. dxe5 {[%clk 0:00:48]}  Bxe5 {[%clk 0:00:36]} 24. Bxe5 {[%clk 0:00:41]}  Nxe5 {[%clk 0:00:36]} 25. Qc3 {[%clk 0:00:42]}  Kh8 {[%clk 0:00:21]} 26. Rxd6 {[%clk 0:00:36]}  h6 {[%clk 0:00:16]} 27. h4 {[%clk 0:00:33]}  Kh7 {[%clk 0:00:16]} 28. h5 {[%clk 0:00:22]}  Qb7 {[%clk 0:00:11]} 29. Qc7 {[%clk 0:00:15]}  Nf3+ {[%clk 0:00:09]} 30. Kf1 {[%clk 0:00:15]}  Nd2+ {[%clk 0:00:05]} 31. Kg1 {[%clk 0:00:10]}  Re1+ {[%clk 0:00:05]} 32. Rxe1 {[%clk 0:00:05]}  Nf3+ {[%clk 0:00:05]} 33. Kf1 {[%clk 0:00:03]}  Qxc7 {[%clk 0:00:05]} 34. Rg6 {[%clk 0:00:02]}  Nxe1 {[%clk 0:00:05]} 35. Kxe1 {[%clk 0:00:02]}  Re8+ {[%clk 0:00:03]} 36. Ne6 {[%clk 0:00:02]}  Qc1+ {[%clk 0:00:02]} 37. Ke2 {[%clk 0:00:02]}  Rxe6+ {[%clk 0:00:03]} 38. Rxe6 {[%clk 0:00:02]}  Qc4+ {[%clk 0:00:04]} 0-1


[Site "https://www.chess.com"]

[Event "Titled Tuesday Blitz March 28 Late 2023"]
[White "Becerra, Juan David"]
[Black "Goltsev, Dmitry"]
[WhiteFideId "4404998"]
[BlackFideId "24176710"]
[WhiteElo "2282"]
[BlackElo "2336"]
[Result "0-1"]
[Round "03"]
[TimeControl "180+2"]
[Date "2023.03.28"]
[WhiteClock "0:00:05"]
[BlackClock "0:00:16"]

1. e4 {[%clk 0:02:59]}  e6 {[%clk 0:02:59]} 2. d4 {[%clk 0:02:59]}  d5 {[%clk 0:03:00]} 3. Nc3 {[%clk 0:02:59]}  c5 {[%clk 0:03:00]} 4. exd5 {[%clk 0:02:56]}  exd5 {[%clk 0:03:01]} 5. Nf3 {[%clk 0:02:56]}  Nf6 {[%clk 0:03:01]} 6. Bb5+ {[%clk 0:02:56]}  Nc6 {[%clk 0:03:01]} 7. O-O {[%clk 0:02:55]}  Be7 {[%clk 0:03:01]} 8. dxc5 {[%clk 0:02:55]}  Bxc5 {[%clk 0:03:02]} 9. Re1+ {[%clk 0:02:55]}  Be6 {[%clk 0:03:02]} 10. Nd4 {[%clk 0:02:49]}  O-O {[%clk 0:03:01]} 11. Bxc6 {[%clk 0:01:53]}  bxc6 {[%clk 0:03:00]} 12. Be3 {[%clk 0:01:53]}  Bd6 {[%clk 0:02:46]} 13. Na4 {[%clk 0:01:29]}  Qc7 {[%clk 0:02:37]} 14. h3 {[%clk 0:01:26]}  Ne4 {[%clk 0:02:36]} 15. f3 {[%clk 0:01:15]}  Bh2+ {[%clk 0:02:30]} 16. Kh1 {[%clk 0:01:13]}  Nf6 {[%clk 0:02:02]} 17. Bg5 {[%clk 0:01:13]}  Nh5 {[%clk 0:01:55]} 18. Rxe6 {[%clk 0:00:53]}  fxe6 {[%clk 0:01:46]} 19. Nxe6 {[%clk 0:00:54]}  Qd6 {[%clk 0:01:45]} 20. Nxf8 {[%clk 0:00:54]}  Rxf8 {[%clk 0:01:37]} 21. Bh4 {[%clk 0:00:54]}  Bg3 {[%clk 0:01:33]} 22. Bxg3 {[%clk 0:00:43]}  Nxg3+ {[%clk 0:01:33]} 23. Kg1 {[%clk 0:00:44]}  Re8 {[%clk 0:01:18]} 24. Nc3 {[%clk 0:00:39]}  Qc5+ {[%clk 0:01:08]} 25. Kh2 {[%clk 0:00:39]}  Qd6 {[%clk 0:01:08]} 26. Kg1 {[%clk 0:00:39]}  Qb4 {[%clk 0:00:59]} 27. Kh2 {[%clk 0:00:28]}  Nf5 {[%clk 0:00:46]} 28. Qd2 {[%clk 0:00:19]}  d4 {[%clk 0:00:26]} 29. Ne4 {[%clk 0:00:14]}  Qxd2 {[%clk 0:00:27]} 30. Nxd2 {[%clk 0:00:15]}  Re2 {[%clk 0:00:28]} 31. Nb3 {[%clk 0:00:09]}  Rxc2 {[%clk 0:00:26]} 32. Rc1 {[%clk 0:00:10]}  Rxb2 {[%clk 0:00:21]} 33. Rxc6 {[%clk 0:00:10]}  Rxa2 {[%clk 0:00:20]} 34. Rc8+ {[%clk 0:00:07]}  Kf7 {[%clk 0:00:20]} 35. Rd8 {[%clk 0:00:08]}  Nh4 {[%clk 0:00:17]} 36. Nxd4 {[%clk 0:00:07]}  Rxg2+ {[%clk 0:00:15]} 37. Kh1 {[%clk 0:00:07]}  Rd2 {[%clk 0:00:15]} 38. Rd7+ {[%clk 0:00:05]}  Ke8 {[%clk 0:00:15]} 39. Rd5 {[%clk 0:00:06]}  Rd1+ {[%clk 0:00:15]} 40. Kh2 {[%clk 0:00:05]}  Rxd4 {[%clk 0:00:16]} 0-1


[Site "https://www.chess.com"]

[Event "Titled Tuesday Blitz March 28 Late 2023"]
[White "Hoffmann, Asa"]
[Black "Florescu, Codrut-Constantin"]
[WhiteFideId "2001470"]
[BlackFideId "1202200"]
[WhiteElo "2117"]
[BlackElo "2191"]
[Result "0-1"]
[Round "03"]
[TimeControl "180+2"]
[Date "2023.03.28"]
[WhiteClock "0:00:04"]
[BlackClock "0:00:20"]

1. d4 {[%clk 0:02:59]}  Nf6 {[%clk 0:02:59]} 2. Bg5 {[%clk 0:02:56]}  e6 {[%clk 0:02:58]} 3. Nd2 {[%clk 0:02:55]}  h6 {[%clk 0:02:57]} 4. Bh4 {[%clk 0:02:55]}  d5 {[%clk 0:02:57]} 5. e3 {[%clk 0:02:55]}  c5 {[%clk 0:02:57]} 6. c3 {[%clk 0:02:54]}  Nc6 {[%clk 0:02:58]} 7. f4 {[%clk 0:02:54]}  Bd7 {[%clk 0:02:55]} 8. Bd3 {[%clk 0:02:54]}  Qb6 {[%clk 0:02:54]} 9. Rb1 {[%clk 0:02:54]}  cxd4 {[%clk 0:02:46]} 10. exd4 {[%clk 0:02:53]}  Bd6 {[%clk 0:02:45]} 11. Qf3 {[%clk 0:02:36]}  O-O-O {[%clk 0:02:40]} 12. Ne2 {[%clk 0:02:36]}  Kb8 {[%clk 0:02:33]} 13. O-O {[%clk 0:02:35]}  Rc8 {[%clk 0:02:33]} 14. b4 {[%clk 0:02:28]}  Ne7 {[%clk 0:02:29]} 15. Nb3 {[%clk 0:02:15]}  Bb5 {[%clk 0:02:08]} 16. Nc5 {[%clk 0:02:11]}  Bxd3 {[%clk 0:01:57]} 17. Qxd3 {[%clk 0:02:11]}  Rhd8 {[%clk 0:01:48]} 18. Bxf6 {[%clk 0:02:02]}  gxf6 {[%clk 0:01:47]} 19. Ng3 {[%clk 0:01:57]}  f5 {[%clk 0:01:41]} 20. Ne2 {[%clk 0:01:43]}  Ng8 {[%clk 0:01:29]} 21. Qh3 {[%clk 0:01:36]}  Nf6 {[%clk 0:01:28]} 22. Qf3 {[%clk 0:01:20]}  Ne4 {[%clk 0:01:27]} 23. Nxe4 {[%clk 0:01:15]}  dxe4 {[%clk 0:01:23]} 24. Qe3 {[%clk 0:01:12]}  Qb5 {[%clk 0:01:18]} 25. Rfc1 {[%clk 0:01:07]}  Qd3 {[%clk 0:01:15]} 26. Kf2 {[%clk 0:01:02]}  Rg8 {[%clk 0:01:10]} 27. g3 {[%clk 0:01:02]}  h5 {[%clk 0:01:10]} 28. h4 {[%clk 0:00:51]}  Be7 {[%clk 0:00:57]} 29. Qxd3 {[%clk 0:00:49]}  exd3 {[%clk 0:00:56]} 30. Ng1 {[%clk 0:00:48]}  d2 {[%clk 0:00:55]} 31. Rc2 {[%clk 0:00:42]}  Bxb4 {[%clk 0:00:53]} 32. Rxd2 {[%clk 0:00:29]}  Bxc3 {[%clk 0:00:52]} 33. Rd3 {[%clk 0:00:29]}  Rc4 {[%clk 0:00:49]} 34. Nf3 {[%clk 0:00:26]}  Ba5 {[%clk 0:00:42]} 35. d5 {[%clk 0:00:23]}  Rc2+ {[%clk 0:00:39]} 36. Kf1 {[%clk 0:00:22]}  exd5 {[%clk 0:00:29]} 37. Rxd5 {[%clk 0:00:19]}  Bb6 {[%clk 0:00:30]} 38. Ng5 {[%clk 0:00:15]}  Rf2+ {[%clk 0:00:24]} 39. Ke1 {[%clk 0:00:13]}  Re8+ {[%clk 0:00:24]} 40. Kd1 {[%clk 0:00:10]}  Rf1+ {[%clk 0:00:21]} 41. Kc2 {[%clk 0:00:10]}  Rc8+ {[%clk 0:00:20]} 42. Kb2 {[%clk 0:00:05]}  Rf2+ {[%clk 0:00:20]} 43. Ka1 {[%clk 0:00:04]}  Rcc2 {[%clk 0:00:20]} 0-1


[Site "https://www.chess.com"]

[Event "Titled Tuesday Blitz March 28 Late 2023"]
[White "Ozdemir, Serhan Berat"]
[Black "Vlassov, Nikolai"]
[WhiteFideId "6374611"]
[BlackFideId "4103360"]
[WhiteElo "2015"]
[BlackElo "2324"]
[Result "0-1"]
[Round "03"]
[TimeControl "180+2"]
[Date "2023.03.28"]
[WhiteClock "0:00:01"]
[BlackClock "0:00:17"]

1. e4 {[%clk 0:02:58]}  c5 {[%clk 0:02:59]} 2. Nf3 {[%clk 0:02:57]}  d6 {[%clk 0:02:59]} 3. d4 {[%clk 0:02:57]}  cxd4 {[%clk 0:02:59]} 4. Nxd4 {[%clk 0:02:58]}  Nf6 {[%clk 0:03:00]} 5. Nc3 {[%clk 0:02:58]}  g6 {[%clk 0:03:00]} 6. Be3 {[%clk 0:02:58]}  a6 {[%clk 0:03:00]} 7. f3 {[%clk 0:02:49]}  Nbd7 {[%clk 0:02:59]} 8. Qd2 {[%clk 0:02:50]}  Qc7 {[%clk 0:02:59]} 9. Be2 {[%clk 0:02:48]}  h5 {[%clk 0:02:55]} 10. O-O {[%clk 0:02:43]}  Bg7 {[%clk 0:02:55]} 11. a4 {[%clk 0:02:40]}  O-O {[%clk 0:02:54]} 12. Nd5 {[%clk 0:02:17]}  Nxd5 {[%clk 0:02:46]} 13. exd5 {[%clk 0:02:18]}  Nb6 {[%clk 0:02:39]} 14. c4 {[%clk 0:01:55]}  Nd7 {[%clk 0:02:25]} 15. b4 {[%clk 0:01:45]}  a5 {[%clk 0:02:24]} 16. Nb5 {[%clk 0:01:31]}  Qd8 {[%clk 0:02:19]} 17. c5 {[%clk 0:01:15]}  axb4 {[%clk 0:02:07]} 18. c6 {[%clk 0:01:14]}  Nc5 {[%clk 0:01:53]} 19. Qxb4 {[%clk 0:00:56]}  bxc6 {[%clk 0:01:44]} 20. dxc6 {[%clk 0:00:55]}  Bxa1 {[%clk 0:01:42]} 21. Rxa1 {[%clk 0:00:55]}  Qa5 {[%clk 0:01:31]} 22. Qh4 {[%clk 0:00:43]}  Bf5 {[%clk 0:01:12]} 23. Bh6 {[%clk 0:00:28]}  Rfe8 {[%clk 0:00:56]} 24. Bc4 {[%clk 0:00:18]}  Be6 {[%clk 0:00:43]} 25. Qd4 {[%clk 0:00:17]}  f6 {[%clk 0:00:43]} 26. Be3 {[%clk 0:00:06]}  Kg7 {[%clk 0:00:35]} 27. Bxe6 {[%clk 0:00:02]}  Nxe6 {[%clk 0:00:35]} 28. Qd5 {[%clk 0:00:03]}  Nf8 {[%clk 0:00:30]} 29. c7 {[%clk 0:00:02]}  Rac8 {[%clk 0:00:25]} 30. Qc6 {[%clk 0:00:02]}  Ne6 {[%clk 0:00:19]} 31. Bb6 {[%clk 0:00:01]}  Qd2 {[%clk 0:00:17]} 0-1


[Site "https://www.chess.com"]